bitfinex/quotes_BTCUSD_20210101
["timestamp","ask_amount","ask_price","bid_price","bid_amount"]
[1609464063847,4.05577202,29329.0,29323.0,0.30628467]
[1609464064041,0.360736,29324.0,29322.0,1.05]
[1609464064345,1.74380722,29323.0,29322.0,1.05]
[1609464064544,0.360789,29323.0,29322.0,1.05]
[1609464064745,0.20818,29323.0,29322.0,1.05]
[1609464065143,0.20818,29323.0,29322.0,2.65]
[1609464065341,0.20818,29323.0,29322.0,1.33467602]
[1609464065637,0.360789,29323.0,29322.0,1.33467602]
[1609464065862,0.360789,29323.0,29322.0,1.05]
[1609464066062,0.60396476,29323.0,29322.0,0.42663083]
[1609464066263,0.60396476,29323.0,29322.0,0.01104951]
[1609464066460,0.60396476,29323.0,29322.0,0.17659434]
[1609464066461,0.366958,29323.0,29322.0,0.17659434]
[1609464066660,0.360789,29323.0,29322.0,0.17659434]
[1609464067062,0.00617441,29324.0,29322.0,0.17659434]
[1609464067262,0.360789,29323.0,29322.0,0.17659434]
[1609464067695,0.00617441,29324.0,29322.0,0.17659434]
[1609464067895,3.510789,29323.0,29322.0,0.17659434]
[1609464068099,3.73088816,29323.0,29318.0,0.26341122]
[1609464068299,0.36754038,29322.0,29318.0,0.26341122]
[1609464068602,0.1555,29321.0,29312.0,0.18630348]
[1609464068797,0.00618528,29315.0,29312.0,0.18630348]
[1609464069100,0.00618528,29315.0,29313.0,0.360789]
[1609464069101,0.18827528,29315.0,29313.0,0.360789]
[1609464069494,0.18709,29315.0,29313.0,0.360789]
[1609464069695,0.18709,29315.0,29312.0,0.18630348]
[1609464069899,0.18709,29315.0,29310.0,0.0202]
[1609464070102,0.56766441,29314.0,29310.0,0.0202]
[1609464070297,0.185,29313.0,29310.0,0.0202]
[1609464070499,0.1555,29312.0,29310.0,0.0202]
[1609464070800,0.20709703,29311.0,29310.0,0.0202]
[1609464070999,0.36259703,29311.0,29310.0,0.0202]
[1609464071721,0.35759703,29311.0,29310.0,0.0202]
[1609464072019,3.50759703,29311.0,29310.0,0.0202]
[1609464072322,0.885789,29310.0,29303.0,0.00065359]
[1609464072627,0.20696738,29309.0,29303.0,0.00065359]
[1609464072824,0.1555,29308.0,29303.0,0.00065359]
[1609464073018,0.1505,29308.0,29303.0,0.00065359]
[1609464073723,0.295,29307.0,29303.0,0.00065359]
[1609464073921,0.360789,29306.0,29303.0,0.00065359]
[1609464074119,2.600477,29304.0,29303.0,0.00065359]
[1609464074322,0.360789,29304.0,29303.0,0.00065359]
[1609464074818,0.60063506,29304.0,29303.0,0.00065359]
[1609464075018,2.75063506,29304.0,29303.0,0.00065359]
[1609464075322,1.01063506,29304.0,29303.0,0.00065359]
[1609464075522,3.7068,29303.0,29297.0,0.2995877]
[1609464075722,0.27999606,29302.0,29298.0,0.360937]
[1609464075916,0.35232606,29302.0,29298.0,0.360937]
[1609464076121,0.35232606,29302.0,29301.0,0.24764483]
[1609464076320,0.52552653,29302.0,29301.0,0.60858183]
[1609464076524,1.55,29301.0,29296.0,0.360968]
[1609464076718,1.77304653,29301.0,29296.0,0.360968]
[1609464076919,1.52304653,29301.0,29296.0,0.360968]
[1609464077644,0.37304653,29301.0,29296.0,1.360968]
[1609464077848,0.37304653,29301.0,29297.0,0.360968]
[1609464078042,0.225,29300.0,29297.0,0.355968]
[1609464078242,0.37304653,29301.0,29297.0,0.355968]
[1609464078642,0.37304653,29301.0,29300.0,0.360968]
[1609464079044,0.15,29301.0,29300.0,1.12392147]
[1609464079445,0.15,29301.0,29300.0,1.11842147]
[1609464079653,0.21956,29303.0,29300.0,1.11842147]
[1609464079950,0.12582893,29308.0,29302.0,1.710983]
[1609464080153,0.12582893,29308.0,29303.0,1.0]
[1609464080353,0.12582893,29308.0,29304.0,0.360968]
[1609464081203,0.12582893,29308.0,29304.0,1.360968]
[1609464081398,0.12582893,29308.0,29304.0,1.0]
[1609464081601,0.24,29307.0,29304.0,1.0]
[1609464081800,0.24,29307.0,29305.0,0.360968]
[1609464082004,0.41162262,29307.0,29305.0,0.360968]
[1609464082316,0.8529,29310.0,29306.0,5.756158]
[1609464082503,0.8529,29310.0,29309.0,4.84881239]
[1609464082746,0.6621,29323.0,29310.0,1.2]
[1609464082953,0.5111,29325.0,29319.0,0.32328216]
[1609464083153,0.6841,29329.0,29319.0,0.88033016]
[1609464083348,0.6841,29329.0,29319.0,2.40313016]
[1609464083655,0.6841,29329.0,29328.0,0.25714153]
[1609464083947,0.6841,29329.0,29328.0,0.23314153]
[1609464084245,1.045068,29329.0,29328.0,0.23314153]
[1609464084448,1.010968,29328.0,29327.0,1.0]
[1609464084654,1.010968,29328.0,29327.0,0.16697291]
[1609464084847,0.360968,29327.0,29322.0,0.33235668]
[1609464085644,0.295,29326.0,29322.0,0.33235668]
[1609464085846,0.355968,29325.0,29322.0,0.33235668]
[1609464086475,0.6841,29329.0,29322.0,0.33235668]
[1609464086768,0.360837,29328.0,29322.0,0.33235668]
[1609464087073,0.360837,29324.0,29321.0,1.0]
[1609464087270,0.360837,29322.0,29321.0,1.0]
[1609464087572,0.577947,29322.0,29321.0,0.39315103]
[1609464087973,0.567947,29322.0,29321.0,0.39315103]
[1609464088568,0.872947,29322.0,29312.0,0.17238378]
[1609464088767,0.847947,29322.0,29312.0,0.17238378]
[1609464088971,0.5112,29318.0,29312.0,0.17238378]
[1609464089174,0.360837,29317.0,29312.0,0.17238378]
[1609464089369,0.360837,29317.0,29309.0,1.0]
[1609464089567,0.135,29316.0,29310.0,0.36089]
[1609464089870,0.29204,29316.0,29310.0,0.08089]
[1609464090367,0.29204,29316.0,29310.0,0.06689]
[1609464090772,0.36089,29315.0,29311.0,0.27628795]
[1609464090972,4.010909,29312.0,29311.0,0.27628795]
[1609464091173,4.010909,29312.0,29310.0,1.0]
[1609464091370,0.360909,29311.0,29310.0,1.0]
[1609464091567,0.360909,29311.0,29306.0,0.20542715]
[1609464091867,0.360909,29311.0,29306.0,0.00058264]
[1609464092514,0.6,29310.0,29306.0,0.00058264]
[1609464092721,0.872209,29309.0,29306.0,0.17416857]
[1609464093515,0.872209,29309.0,29306.0,0.17358593]
[1609464093722,0.355,29308.0,29306.0,0.17358593]
[1609464093917,0.355,29308.0,29307.0,0.360909]
[1609464094420,0.710909,29308.0,29306.0,0.17358593]
[1609464094623,0.710909,29308.0,29307.0,0.360909]
[1609464094624,0.35,29308.0,29307.0,0.360909]
[1609464094920,0.255,29307.0,29306.0,0.16858593]
[1609464095327,0.5113,29309.0,29306.0,0.52949493]
[1609464095531,0.6538,29310.0,29307.0,0.355909]
[1609464096358,0.6538,29310.0,29307.0,1.355909]
[1609464096562,0.6538,29310.0,29307.0,1.478099]
[1609464096860,0.6538,29310.0,29307.0,1.678099]
[1609464097059,0.6538,29310.0,29307.0,1.478099]
[1609464097766,0.78238396,29310.0,29307.0,1.478099]
[1609464098169,0.72848641,29310.0,29307.0,2.61823025]
[1609464098369,0.07468641,29310.0,29308.0,0.232742]
[1609464098565,0.07468641,29310.0,29309.0,0.35588]
[1609464099171,0.001,29311.0,29309.0,0.35588]
[1609464099371,0.12903739,29314.0,29310.0,0.95]
[1609464099601,0.12903739,29314.0,29313.0,0.30287957]
[1609464099969,1.510928,29314.0,29313.0,0.30287957]
[1609464100171,0.68835813,29314.0,29313.0,0.30287957]
[1609464100369,1.08835813,29314.0,29313.0,0.44301082]
[1609464100576,0.72743013,29314.0,29313.0,0.80393882]
[1609464100780,0.62269258,29314.0,29313.0,5.90393882]
[1609464100979,0.6641,29315.0,29313.0,7.30393882]
[1609464101173,0.48222144,29319.0,29314.0,6.70247676]
[1609464101503,0.095,29322.0,29318.0,3.7680085]
[1609464101697,0.095,29322.0,29318.0,4.9531485]
[1609464101904,0.095,29322.0,29321.0,4.327525]
[1609464102106,1.17426148,29330.0,29323.0,0.560794]
[1609464102301,1.17426148,29330.0,29322.0,5.1]
[1609464102302,1.053028,29330.0,29329.0,0.3061038]
[1609464102501,1.053028,29330.0,29329.0,0.5253138]
[1609464103395,3.003028,29330.0,29329.0,0.5113138]
[1609464103698,3.003028,29330.0,29329.0,1.43223505]
[1609464103699,2.253028,29330.0,29329.0,1.43223505]
[1609464104393,1.053028,29330.0,29329.0,1.43223505]
[1609464104597,1.053028,29330.0,29329.0,1.42723505]
[1609464105298,2.803028,29330.0,29329.0,1.40223505]
[1609464105697,1.053028,29330.0,29329.0,1.40223505]
[1609464106098,1.208028,29330.0,29329.0,1.40223505]
[1609464106298,1.203028,29330.0,29329.0,1.40223505]
[1609464106497,1.203028,29330.0,29329.0,1.2621038]
[1609464106696,2.953028,29330.0,29329.0,1.2621038]
[1609464107118,2.953028,29330.0,29329.0,0.97]
[1609464107716,4.953028,29330.0,29329.0,1.10513125]
[1609464107912,2.953028,29330.0,29329.0,1.10513125]
[1609464108422,3.43499145,29330.0,29329.0,1.10513125]
[1609464108621,5.303028,29330.0,29329.0,0.89735334]
[1609464109019,5.77332965,29330.0,29329.0,0.85461727]
[1609464109218,5.77332965,29330.0,29329.0,0.77411457]
[1609464109822,3.42332965,29330.0,29329.0,0.14013125]
[1609464110130,3.42332965,29330.0,29329.0,0.25138396]
[1609464110131,1.67332965,29330.0,29329.0,0.25138396]
[1609464110428,1.203028,29330.0,29329.0,0.25138396]
[1609464110933,0.8421,29330.0,29329.0,1.49441216]
[1609464111071,1.57964085,29330.0,29329.0,1.85534016]
[1609464111471,1.56964085,29330.0,29329.0,1.49441216]
[1609464112071,1.56964085,29330.0,29329.0,1.85534016]
[1609464112269,1.41464085,29330.0,29329.0,1.85534016]
[1609464112805,1.03064085,29330.0,29329.0,1.49441216]
[1609464113104,1.39156885,29330.0,29329.0,1.49441216]
[1609464113802,1.39156885,29330.0,29329.0,1.35428396]
[1609464114605,1.39156885,29330.0,29329.0,1.25138396]
[1609464114908,1.59656885,29330.0,29329.0,1.0]
[1609464115104,1.59156885,29330.0,29329.0,1.0]
[1609464115303,1.38656885,29330.0,29329.0,1.0]
[1609464115913,1.57468885,29330.0,29329.0,1.0]
[1609464116107,1.56968885,29330.0,29329.0,1.0]
[1609464116305,1.80968885,29330.0,29329.0,1.0]
[1609464116736,1.9965791,29330.0,29329.0,1.0]
[1609464116938,1.9965791,29330.0,29329.0,1.25]
[1609464117535,4.4965791,29330.0,29329.0,1.25]
[1609464117840,1.9965791,29330.0,29329.0,1.25]
[1609464119537,1.7565791,29330.0,29329.0,1.25]
[1609464119743,1.5684591,29330.0,29329.0,1.25]
[1609464120637,1.5584591,29330.0,29329.0,1.25]
[1609464123183,1.7884591,29330.0,29329.0,1.25]
[1609464123586,4.2334591,29330.0,29329.0,1.25]
[1609464123788,4.2334591,29330.0,29329.0,1.3901282]
[1609464123983,5.8834591,29330.0,29329.0,1.3401282]
[1609464124188,4.70399649,29330.0,29329.0,1.3401282]
[1609464125185,0.2556,29328.0,29316.0,0.32058976]
[1609464125394,0.360928,29327.0,29316.0,0.32058976]
[1609464125590,0.360928,29323.0,29311.0,0.23411409]
[1609464125783,0.23626,29323.0,29311.0,0.23411409]
[1609464126035,0.23626,29323.0,29301.0,0.39647122]
[1609464126036,0.360928,29322.0,29309.0,0.00063245]
[1609464127136,0.110928,29316.0,29309.0,0.00063245]
[1609464127332,0.324308,29316.0,29309.0,0.00063245]
[1609464127528,0.324308,29316.0,29311.0,0.3092262]
[1609464128333,0.324308,29316.0,29309.0,0.00063245]
[1609464129332,0.324308,29316.0,29311.0,0.24426624]
[1609464130035,0.5112,29313.0,29311.0,0.24426624]
[1609464130234,1.760928,29312.0,29311.0,0.24426624]
[1609464130440,1.75,29311.0,29308.0,0.36092]
[1609464130835,1.75,29311.0,29303.0,0.36092]
[1609464131037,0.26,29310.0,29303.0,0.36092]
[1609464131339,0.78818,29310.0,29302.0,0.39523977]
[1609464131559,0.78818,29310.0,29302.0,0.29368733]
[1609464132061,0.5113,29309.0,29302.0,1.29368733]
[1609464132458,0.5113,29309.0,29302.0,0.29368733]
[1609464132657,0.5113,29309.0,29302.0,0.43381553]
[1609464133056,0.5113,29309.0,29302.0,1.43381553]
[1609464133257,0.5113,29309.0,29302.0,0.43381553]
[1609464133453,0.60335801,29309.0,29302.0,0.43381553]
[1609464133653,0.60335801,29309.0,29302.0,0.29368733]
[1609464133854,0.60335801,29309.0,29302.0,1.29368733]
[1609464134257,1.05,29308.0,29303.0,0.339965]
[1609464134656,1.365,29308.0,29303.0,0.320965]
[1609464134858,1.365,29308.0,29300.0,1.27185347]
[1609464135061,1.365,29308.0,29301.0,1.13837233]
[1609464135257,1.05,29308.0,29301.0,1.11337233]
[1609464135456,1.05,29308.0,29301.0,1.62467233]
[1609464135659,0.09205801,29309.0,29302.0,0.77740733]
[1609464135858,0.09205801,29309.0,29304.0,0.23945021]
[1609464136166,0.28645801,29310.0,29305.0,1.11332333]
[1609464136364,0.28645801,29310.0,29309.0,0.94588094]
[1609464136561,1.1361,29315.0,29309.0,1.28174794]
[1609464136864,0.360966,29314.0,29309.0,0.19588094]
[1609464137682,0.22259267,29313.0,29309.0,0.19588094]
[1609464137891,0.22259267,29313.0,29304.0,0.3316313]
[1609464137892,0.872266,29312.0,29304.0,0.3316313]
[1609464138182,0.5113,29312.0,29304.0,0.3316313]
[1609464138385,0.5113,29312.0,29305.0,0.360949]
[1609464138885,0.0063,29312.0,29306.0,2.5]
[1609464139084,0.0063,29312.0,29309.0,0.27776205]
[1609464139393,1.1361,29315.0,29310.0,0.360884]
[1609464139588,1.1361,29315.0,29310.0,0.560884]
[1609464140188,1.1361,29315.0,29310.0,0.7010122]
[1609464140483,1.1361,29315.0,29314.0,0.21149486]
[1609464140687,1.497049,29315.0,29314.0,0.21149486]
[1609464140968,0.360949,29315.0,29314.0,0.21149486]
[1609464141327,0.360949,29315.0,29309.0,0.70501841]
[1609464141531,0.35641951,29320.0,29309.0,0.90501841]
[1609464141728,1.73854167,29319.0,29309.0,0.90501841]
[1609464141925,1.515949,29319.0,29309.0,0.90501841]
[1609464142227,0.5112,29317.0,29310.0,0.360949]
[1609464142627,0.5112,29317.0,29309.0,0.56489021]
[1609464142860,0.360949,29316.0,29309.0,0.56489021]
[1609464143465,3.12259267,29315.0,29314.0,0.21509279]
[1609464143668,0.595,29314.0,29309.0,0.4181282]
[1609464143869,0.360949,29313.0,29309.0,0.4181282]
[1609464144468,0.360949,29313.0,29309.0,0.6681282]
[1609464145562,0.360949,29313.0,29309.0,0.528]
[1609464146370,0.5113,29312.0,29309.0,0.528]
[1609464146597,0.360949,29311.0,29309.0,0.528]
[1609464147398,0.05,29310.0,29309.0,0.528]
[1609464147604,0.410949,29310.0,29309.0,0.528]
[1609464148195,0.4691344,29310.0,29309.0,0.528]
[1609464150197,1.2691344,29310.0,29309.0,0.528]
[1609464150400,1.5341344,29310.0,29309.0,0.528]
[1609464151096,1.69354167,29310.0,29309.0,0.68141206]
[1609464151303,4.04354167,29310.0,29309.0,0.68141206]
[1609464151499,4.22038183,29310.0,29309.0,0.68141206]
[1609464151702,4.25961278,29310.0,29309.0,0.68141206]
[1609464151907,5.22038183,29310.0,29309.0,0.64121935]
[1609464152100,2.87038183,29310.0,29309.0,0.64121935]
[1609464153219,2.87038183,29310.0,29302.0,0.24152481]
[1609464153425,0.360949,29306.0,29296.0,0.6817]
[1609464153638,0.21759267,29294.0,29288.0,0.0002]
[1609464153832,0.21759267,29287.0,29282.0,0.0002]
[1609464154030,0.360949,29284.0,29275.0,0.0008]
[1609464154226,0.3,29280.0,29275.0,0.0002]
[1609464154427,0.6412,29278.0,29273.0,0.0002]
[1609464154635,0.6412,29278.0,29268.0,0.3116963]
[1609464154636,0.510949,29275.0,29268.0,0.3116963]
[1609464154932,0.2,29272.0,29266.0,0.0002]
[1609464155131,0.41759267,29269.0,29260.0,0.0006]
[1609464155327,0.41759267,29269.0,29259.0,0.0002]
[1609464155328,0.2,29265.0,29259.0,0.0002]
[1609464155527,0.57854167,29264.0,29259.0,0.0002]
[1609464155724,0.21759267,29263.0,29259.0,0.0002]
[1609464156018,0.500949,29262.0,29259.0,0.0002]
[1609464156376,0.71854167,29262.0,29259.0,0.0002]
[1609464156581,0.71854167,29262.0,29246.0,0.03346812]
[1609464156782,0.5121,29255.0,29247.0,0.360949]
[1609464157078,0.69436,29255.0,29247.0,0.360949]
[1609464157386,0.69436,29255.0,29252.0,0.36089]
[1609464157582,0.69436,29255.0,29254.0,0.057888]
[1609464158222,0.89436,29255.0,29254.0,0.360831]
[1609464158423,0.89436,29255.0,29252.0,0.36086]
[1609464158619,0.89436,29255.0,29252.0,0.35586]
[1609464158818,0.69436,29255.0,29252.0,0.35586]
[1609464159418,0.69436,29255.0,29252.0,0.99615533]
[1609464159621,0.69436,29255.0,29253.0,0.64029533]
[1609464159827,1.83270001,29265.0,29254.0,1.555832]
[1609464160028,0.68280001,29263.0,29261.0,0.19081788]
[1609464160228,0.68270001,29265.0,29262.0,1.69601233]
[1609464160424,0.68270001,29265.0,29264.0,0.355689]
[1609464160929,0.83241577,29272.0,29264.0,0.99598433]
[1609464161134,2.01479471,29274.0,29266.0,0.355655]
[1609464161433,0.38829461,29271.0,29268.0,0.36829412]
[1609464161666,0.465,29273.0,29266.0,0.22652603]
[1609464161667,1.361132,29270.0,29266.0,0.22652603]
[1609464161861,1.361132,29270.0,29261.0,0.20899371]
[1609464161862,1.0208,29269.0,29261.0,0.20899371]
[1609464162057,1.44398077,29268.0,29261.0,0.20899371]
[1609464162253,2.14891456,29267.0,29261.0,0.20899371]
[1609464162455,0.19519629,29266.0,29261.0,0.20899371]
[1609464162651,0.361132,29265.0,29244.0,0.38345494]
[1609464162857,0.39519629,29264.0,29245.0,0.361106]
[1609464163054,0.03346812,29263.0,29245.0,1.043706]
[1609464163254,0.56928746,29263.0,29245.0,1.038706]
[1609464163451,1.19519629,29262.0,29245.0,1.038706]
[1609464163659,0.22866441,29261.0,29255.0,0.24513183]
[1609464163858,1.75630229,29260.0,29255.0,0.24513183]
[1609464164054,1.75630229,29260.0,29251.0,0.21696877]
[1609464164055,1.61540772,29259.0,29251.0,0.21696877]
[1609464164256,0.683,29257.0,29251.0,0.21696877]
[1609464164562,0.44,29256.0,29255.0,0.25950661]
[1609464164762,0.73825,29257.0,29255.0,0.62062861]
[1609464164763,0.25044629,29257.0,29255.0,0.62062861]
[1609464164960,0.05025,29257.0,29256.0,0.361122]
[1609464165457,0.25025,29257.0,29245.0,0.3819396]
[1609464165654,0.2,29257.0,29245.0,0.29366384]
[1609464165856,0.2,29257.0,29247.0,0.00052736]
[1609464166067,0.5122,29258.0,29250.0,0.27820498]
[1609464166261,1.03246883,29267.0,29256.0,0.23154056]
[1609464166456,0.83246883,29267.0,29256.0,0.23154056]
[1609464166758,1.31,29266.0,29256.0,0.23154056]
[1609464166957,0.03346812,29264.0,29256.0,0.20632788]
[1609464167283,0.55362998,29265.0,29254.0,0.06667103]
[1609464167580,0.35353159,29263.0,29254.0,0.06186732]
[1609464167777,0.35777311,29263.0,29254.0,0.06186732]
[1609464167982,0.20424152,29263.0,29254.0,0.06186732]
[1609464168184,0.00424152,29263.0,29254.0,0.05686732]
[1609464168382,0.35347821,29262.0,29254.0,0.05686732]
[1609464168587,1.0,29261.0,29251.0,0.18912146]
[1609464168788,0.01713006,29260.0,29247.0,0.00052736]
[1609464168979,1.05059818,29259.0,29247.0,0.00052736]
[1609464169281,1.01713006,29259.0,29247.0,0.00052736]
[1609464169484,0.01713006,29259.0,29247.0,0.00052736]
[1609464169684,1.01713006,29259.0,29247.0,0.00052736]
[1609464169981,0.01713006,29259.0,29247.0,0.00052736]
[1609464170183,0.21232635,29259.0,29247.0,0.00052736]
[1609464170679,0.54871165,29258.0,29247.0,0.00052736]
[1609464170878,0.37064542,29258.0,29247.0,0.00052736]
[1609464171088,0.56584171,29258.0,29247.0,0.00052736]
[1609464171298,1.72452635,29258.0,29247.0,0.00052736]
[1609464171494,0.21232635,29257.0,29243.0,0.0006]
[1609464171692,0.21232635,29255.0,29243.0,0.0006]
[1609464171896,0.01713006,29255.0,29248.0,0.27434049]
[1609464172098,0.01713006,29255.0,29243.0,0.00540371]
[1609464172926,0.01713006,29255.0,29243.0,0.0006]
[1609464173133,0.36585602,29254.0,29250.0,0.26983263]
[1609464173330,0.35388253,29253.0,29250.0,0.26983263]
[1609464173532,0.3663668,29253.0,29250.0,0.25083263]
[1609464173732,0.36601259,29253.0,29250.0,0.25083263]
[1609464173927,0.01213006,29252.0,29250.0,0.25083263]
[1609464174129,0.36602619,29252.0,29250.0,0.25083263]
[1609464174430,0.35409549,29251.0,29250.0,0.25083263]
[1609464174630,0.01489824,29251.0,29250.0,0.25083263]
[1609464175335,0.01489824,29251.0,29250.0,0.25563634]
[1609464175535,0.36900883,29251.0,29250.0,0.25083263]
[1609464175932,0.36900883,29251.0,29250.0,4.35563634]
[1609464176440,0.01489824,29251.0,29250.0,4.93083263]
[1609464176646,0.01489824,29251.0,29250.0,4.93563634]
[1609464177360,1.88081164,29269.0,29251.0,4.10480371]
[1609464177563,0.83231164,29269.0,29268.0,4.33421543]
[1609464177755,0.48231164,29269.0,29268.0,4.51366914]
[1609464178062,0.69460001,29287.0,29268.0,4.51107347]
[1609464178063,0.49333558,29276.0,29268.0,4.51107347]
[1609464178365,0.00140001,29287.0,29285.0,0.31091581]
[1609464178656,0.00140001,29287.0,29285.0,0.48754581]
[1609464179550,0.00140001,29287.0,29285.0,0.61511285]
[1609464179754,0.35060001,29286.0,29285.0,0.21864163]
[1609464180258,0.00060001,29286.0,29285.0,0.21864163]
[1609464180655,0.65060001,29286.0,29285.0,0.21864163]
[1609464180862,3.16172701,29286.0,29281.0,0.39647122]
[1609464181056,1.80060001,29286.0,29284.0,0.12105]
[1609464181254,0.00060001,29286.0,29284.0,0.12105]
[1609464181659,0.50060001,29286.0,29285.0,0.30489539]
[1609464181955,0.00060001,29286.0,29285.0,0.30489539]
[1609464183404,0.00060001,29286.0,29285.0,0.29989539]
[1609464183610,3.0457963,29286.0,29284.0,0.11271]
[1609464183812,0.55632329,29285.0,29282.0,0.39647122]
[1609464184008,0.1957963,29286.0,29280.0,0.12798114]
[1609464184505,0.1957963,29286.0,29285.0,0.2886467]
[1609464185709,0.00060001,29286.0,29285.0,0.2886467]
[1609464186155,0.00140001,29287.0,29285.0,0.5046467]
[1609464186753,0.00140001,29287.0,29285.0,0.2896467]
[1609464187453,0.00140001,29287.0,29285.0,0.6896467]
[1609464187654,0.00140001,29287.0,29285.0,2.1396467]
[1609464187851,0.00140001,29287.0,29285.0,2.2797749]
[1609464188153,0.00140001,29287.0,29285.0,1.8287749]
[1609464188349,0.00140001,29287.0,29285.0,1.8297749]
[1609464188558,0.00080003,29290.0,29286.0,4.5]
[1609464188759,0.00100005,29292.0,29289.0,1.2]
[1609464188955,0.00100005,29292.0,29291.0,4.3329594]
[1609464189754,0.00100005,29292.0,29291.0,6.3780876]
[1609464190658,0.00100005,29292.0,29291.0,2.2780876]
[1609464190857,3.30100005,29292.0,29291.0,1.0]
[1609464191062,3.85732334,29292.0,29291.0,1.0]
[1609464191363,4.17579146,29292.0,29291.0,1.0]
[1609464191877,4.17579146,29292.0,29291.0,0.995]
[1609464192080,0.59166751,29291.0,29285.0,0.001]
[1609464192277,0.59166751,29289.0,29285.0,0.001]
[1609464192481,1.58979141,29288.0,29285.0,0.001]
[1609464192674,0.59166751,29287.0,29285.0,0.001]
[1609464192878,0.5667623,29286.0,29285.0,0.001]
[1609464193085,0.2056353,29286.0,29285.0,2.52167464]
[1609464193380,0.2056353,29286.0,29285.0,2.52267464]
[1609464193781,0.01043901,29286.0,29285.0,2.52267464]
[1609464194284,0.2056353,29286.0,29285.0,2.66280284]
[1609464194489,0.01043901,29286.0,29285.0,2.66280284]
[1609464194686,0.01043901,29286.0,29285.0,2.65780284]
[1609464194883,0.01043901,29286.0,29285.0,3.13280284]
[1609464195282,0.01043901,29286.0,29285.0,3.12780284]
[1609464195980,0.01043901,29286.0,29285.0,2.65280284]
[1609464196386,0.01043901,29286.0,29285.0,0.30280284]
[1609464196588,0.66043901,29286.0,29285.0,0.001]
[1609464196786,0.8556353,29286.0,29284.0,1.8220282]
[1609464197187,0.8556353,29286.0,29285.0,0.001]
[1609464197412,0.2056353,29286.0,29285.0,1.001]
[1609464197812,0.00543901,29286.0,29285.0,2.301]
[1609464198015,0.2006353,29286.0,29285.0,0.1411282]
[1609464198610,0.2006353,29286.0,29285.0,0.8411282]
[1609464199012,0.00543901,29286.0,29285.0,0.001]
[1609464199231,2.5006353,29286.0,29285.0,0.001]
[1609464199416,4.2367623,29286.0,29285.0,0.001]
[1609464199617,0.9367623,29286.0,29285.0,0.001]
[1609464199816,0.2006353,29286.0,29284.0,0.986]
[1609464200015,0.2006353,29286.0,29285.0,0.001]
[1609464200710,0.2006353,29286.0,29285.0,0.851]
[1609464200917,0.00543901,29286.0,29285.0,0.851]
[1609464201155,0.00543901,29286.0,29285.0,0.846]
[1609464201350,0.00043901,29286.0,29285.0,0.846]
[1609464201550,0.00043901,29286.0,29285.0,1.116]
[1609464201748,0.00043901,29286.0,29285.0,1.2561282]
[1609464202155,0.00043901,29286.0,29285.0,1.26694202]
[1609464202349,0.56840688,29286.0,29285.0,1.26694202]
[1609464202551,0.56840688,29286.0,29285.0,4.11694202]
[1609464202750,0.57186211,29286.0,29285.0,4.11694202]
[1609464204381,0.00300001,29293.0,29292.0,1.4]
[1609464204382,0.0008,29293.0,29292.0,1.4]
[1609464204581,0.0024,29295.0,29293.0,5.25]
[1609464204582,0.00120001,29295.0,29293.0,5.25]
[1609464204783,0.00120001,29295.0,29293.0,5.65]
[1609464204982,0.00120001,29295.0,29294.0,4.50776498]
[1609464205184,0.00120001,29295.0,29294.0,4.31466888]
[1609464205681,0.00120001,29295.0,29294.0,5.21966888]
[1609464205982,0.00120001,29295.0,29294.0,5.35979708]
[1609464206378,0.00120001,29295.0,29294.0,5.1451282]
[1609464206580,0.00120001,29295.0,29294.0,2.1951282]
[1609464206810,0.00120001,29295.0,29294.0,1.2901282]
[1609464207313,0.00120001,29295.0,29294.0,1.30093871]
[1609464207506,0.00120001,29295.0,29294.0,3.10093871]
[1609464207908,0.00273424,29298.0,29295.0,2.85]
[1609464208111,0.00273424,29298.0,29296.0,1.4]
[1609464208312,0.00655395,29298.0,29297.0,2.435]
[1609464208508,0.00655395,29298.0,29297.0,0.585]
[1609464208719,0.00655395,29298.0,29296.0,1.1401282]
[1609464209523,2.70632329,29297.0,29296.0,1.1401282]
[1609464209722,1.70632329,29297.0,29296.0,1.1401282]
[1609464209925,2.70632329,29297.0,29296.0,1.1401282]
[1609464210517,0.55632329,29297.0,29296.0,1.1401282]
[1609464210724,0.361127,29297.0,29296.0,1.1401282]
[1609464211322,0.361127,29297.0,29296.0,1.1034682]
[1609464211524,0.361127,29297.0,29296.0,1.0884682]
[1609464211826,0.00655395,29298.0,29296.0,1.0834682]
[1609464212022,0.20175024,29298.0,29296.0,1.0834682]
[1609464212439,0.40655395,29298.0,29296.0,1.0834682]
[1609464212639,0.40655395,29298.0,29297.0,0.01080959]
[1609464212835,0.40655395,29298.0,29297.0,0.15093779]
[1609464213036,0.76768095,29298.0,29297.0,0.15093779]
[1609464213232,0.36768095,29298.0,29297.0,0.15093779]
[1609464213443,0.00060001,29299.0,29298.0,4.05]
[1609464213744,0.533969,29300.0,29299.0,4.45]
[1609464213936,0.533969,29300.0,29299.0,5.1013282]
[1609464214540,0.083969,29300.0,29299.0,5.1013282]
[1609464214739,0.078969,29300.0,29299.0,6.1013282]
[1609464216990,0.078969,29300.0,29299.0,6.0963282]
[1609464217891,0.078969,29300.0,29299.0,2.0463282]
[1609464218130,0.078969,29300.0,29299.0,1.0463282]
[1609464218530,0.078969,29300.0,29299.0,5.0963282]
[1609464218831,0.00300001,29301.0,29300.0,4.05]
[1609464219029,0.00300001,29301.0,29300.0,4.1901282]
[1609464219427,0.00300001,29301.0,29300.0,4.3951282]
[1609464221130,0.00300001,29301.0,29300.0,4.1901282]
[1609464221438,0.00300001,29305.0,29299.0,0.97812]
[1609464221439,0.00120004,29304.0,29303.0,4.21910919]
[1609464221631,0.00120004,29304.0,29303.0,4.61410919]
[1609464222561,0.00120004,29304.0,29303.0,4.75423739]
[1609464222758,0.00120004,29304.0,29303.0,0.85423739]
[1609464222960,0.19639633,29304.0,29303.0,0.85423739]
[1609464223160,0.00120004,29304.0,29303.0,0.85423739]
[1609464223363,0.00120004,29304.0,29303.0,2.8650446]
[1609464223773,0.19639633,29304.0,29303.0,3.2200446]
[1609464224157,0.19639633,29304.0,29303.0,1.2000446]
[1609464224456,0.19639633,29304.0,29303.0,3.1500446]
[1609464224658,0.00120004,29304.0,29303.0,3.1500446]
[1609464225060,0.00120004,29304.0,29303.0,1.2000446]
[1609464225260,0.19519629,29305.0,29304.0,4.05]